Workbook

Sheet قائمة المواد
A1: اسم المادة | B1: الثمن بالدينار | G1: اسم المورد
A2: ملح بالبود 01 كغ | B2: 30 | G2: الاسم 01
A3: ياغوورت نوعية رفيعة | B3: 29 | G3: الاسم 02
A4: لفاح 01 كغ | B4: 570 | G4: الاسم 03
A5: زيت المائدة بدون كلسترول 05 ل | B5: 680 | G5: الاسم 04
A6: تليتلي 800 غ | B6: 100 | G6: الاسم 05
A7: كسكسي 01 كغ | B7: 140 | G7: الاسم 06
A8: شربة فريك 01 كلغ | B8: 450 | G8: الاسم 07
A9: عدس 800غ | B9: 220 | G9: الاسم 08
A10: حمص 800 غ | B10: 380 | G10: الاسم 09
A11: أرز مفور 800 غ | B11: 140 | G11: الاسم 10
A12: خل قارورة | B12: 20 | G12: الاسم 11
A13: لوبيا | B13: 240 | G13: الاسم 12
A14: شربة فرميسال | B14: 100 | G14: الاسم 13
A15: سباقيتي | B15: 100 | G15: الاسم 14
A16: ثوم مرحي | B16: 1400 | G16: الاسم 15
A17: جبن حبة نوعية رفيعة | B17: 15 | G17: الاسم 16
A18: طماطم مصبرة 400غ | B18: 120 | G18: الاسم 17
A19: زبدة | B19: 690 | G19: الاسم 18
A20: فلفل أحمر مرحي | B20: 780 | G20: الاسم 19
A21: جزر | B21: 95 | G21: الاسم 20
A22: خرشف | B22: 70 | G22: الاسم 21
A23: خيار | B23: 85 | G23: الاسم 22
A24: لفت | B24: 70 | G24: الاسم 23
A25: بطاطا | B25: 90 | G25: الاسم 24
A26: بصل | B26: 100 | G26: الاسم 25
A27: طماطم | B27: 110
A28: زيتون أسود | B28: 380
A29: زيتون أخضر | B29: 430
A30: تفاح | B30: 350
A31: موز | B31: 470
A32: برتقال | B32: 240
A33: تمر | B33: 290
A34: الوسفية مندرينة | B34: 240
A35: زعرورة | B35: 200
A36: أنناس علب | B36: 240
A37: سلاطة | B37: 80
A38: دبشة | B38: 15
A39: بسباس | B39: 80
A40: خبز عادي | B40: 8
A41: لحم العجل الطازج | B41: 1300
A42: دجاج مفرغ لا يقل وزنه عن 02 كلغ | B42: 330
A43: صفائح البيض 30 بيضة | B43: 300

Sheet Sheet1
C2: الجمهورية الجزائرية الديمقراطية الشعبية
A3: ولاية : برج بوعريريج
A4: دائرة : مجــــــــــانــــة | E4: اسم المورد :
A5: بلدية : ثنية النصــــــــر | E5: التاريخ :
A6: المكلف بتسيير المطاعم المدرسية
D7: وصل تسليم رقم :
A8: الرقم | B8: تعييـــــــــــــــــن البضاعـــــة | E8: الوحدة | F8: الكمية | G8: سعر الوحدة | H8: المبلغ الاجمالي
A9: =IF(ISBLANK(B9),"",COUNTA(B$8:$C9)-1) -> 1 | B9: لفاح 01 كغ | F9: 3 | G9: =IF(ISBLANK(B9),"",VLOOKUP(B9,_list,2,0)) -> 570 | H9: =IF(ISBLANK(B9),"",F9*G9) -> 1710
A10: =IF(ISBLANK(B10),"",COUNTA(B$8:$C10)-1) -> 2 | B10: شربة فريك 01 كلغ | F10: 3 | G10: =IF(ISBLANK(B10),"",VLOOKUP(B10,_list,2,0)) -> 450 | H10: =IF(ISBLANK(B10),"",F10*G10) -> 1350
A11: =IF(ISBLANK(B11),"",COUNTA(B$8:$C11)-1) -> 3 | B11: زيت المائدة بدون كلسترول 05 ل | F11: 6 | G11: =IF(ISBLANK(B11),"",VLOOKUP(B11,_list,2,0)) -> 680 | H11: 4080
A12: =IF(ISBLANK(B12),"",COUNTA(B$8:$C12)-1) -> 4 | B12: شربة فريك 01 كلغ | F12: 2 | G12: =IF(ISBLANK(B12),"",VLOOKUP(B12,_list,2,0)) -> 450 | H12: 900
A13: =IF(ISBLANK(B13),"",COUNTA(B$8:$C13)-1) ->  | G13: =IF(ISBLANK(B13),"",VLOOKUP(B13,_list,2,0)) -> 
A14: =IF(ISBLANK(B14),"",COUNTA(B$8:$C14)-1) ->  | G14: =IF(ISBLANK(B14),"",VLOOKUP(B14,_list,2,0)) -> 
A15: =IF(ISBLANK(B15),"",COUNTA(B$8:$C15)-1) ->  | G15: =IF(ISBLANK(B15),"",VLOOKUP(B15,_list,2,0)) ->  | H15: =IF(ISBLANK(B15),"",F15*G15) -> 
A16: =IF(ISBLANK(B16),"",COUNTA(B$8:$C16)-1) ->  | G16: =IF(ISBLANK(B16),"",VLOOKUP(B16,_list,2,0)) -> 
A17: =IF(ISBLANK(B17),"",COUNTA(B$8:$C17)-1) ->  | G17: =IF(ISBLANK(B17),"",VLOOKUP(B17,_list,2,0)) -> 
A18: =IF(ISBLANK(B18),"",COUNTA(B$8:$C18)-1) ->  | G18: =IF(ISBLANK(B18),"",VLOOKUP(B18,_list,2,0)) -> 
A19: =IF(ISBLANK(B19),"",COUNTA(B$8:$C19)-1) ->  | G19: =IF(ISBLANK(B19),"",VLOOKUP(B19,_list,2,0)) -> 
A20: =IF(ISBLANK(B20),"",COUNTA(B$8:$C20)-1) ->  | G20: =IF(ISBLANK(B20),"",VLOOKUP(B20,_list,2,0)) -> 
A21: =IF(ISBLANK(B21),"",COUNTA(B$8:$C21)-1) ->  | G21: =IF(ISBLANK(B21),"",VLOOKUP(B21,_list,2,0)) -> 
A22: =IF(ISBLANK(B22),"",COUNTA(B$8:$C22)-1) ->  | G22: =IF(ISBLANK(B22),"",VLOOKUP(B22,_list,2,0)) -> 
A23: =IF(ISBLANK(B23),"",COUNTA(B$8:$C23)-1) ->  | G23: =IF(ISBLANK(B23),"",VLOOKUP(B23,_list,2,0)) -> 
A24: =IF(ISBLANK(B24),"",COUNTA(B$8:$C24)-1) ->  | G24: =IF(ISBLANK(B24),"",VLOOKUP(B24,_list,2,0)) -> 
A25: =IF(ISBLANK(B25),"",COUNTA(B$8:$C25)-1) ->  | G25: =IF(ISBLANK(B25),"",VLOOKUP(B25,_list,2,0)) -> 
A26: =IF(ISBLANK(B26),"",COUNTA(B$8:$C26)-1) ->  | G26: =IF(ISBLANK(B26),"",VLOOKUP(B26,_list,2,0)) -> 
A27: =IF(ISBLANK(B27),"",COUNTA(B$8:$C27)-1) ->  | G27: =IF(ISBLANK(B27),"",VLOOKUP(B27,_list,2,0)) -> 
A28: الإجمالي | H28: =SUM(H9:H27) -> 8040
A29: =[1]!NoToTxt(H28,"دينار","فلس") -> فقط ثمانية آلاف وأربعون دينار

Sheet نموذج (hidden)
C2: إيصال إستلام
C4: اسم المورد :
E5: التاريخ : | F5: =TODAY() -> 2018-09-25
C7: بيان البضاعة المسلمة
B8: مسلسل | C8: اسم المادة | D8: الثمن بالدينار | E8: العدد | F8: إجمالي الثمن بالدينار
B9: =IF(ISBLANK(C9),"",COUNTA($C$8:C9)-1) -> 1 | C9: زيت المائدة بدون كلسترول 05 ل | D9: =IF(ISBLANK(C9),"",VLOOKUP(C9,_list,2,0)) -> 680 | E9: 3 | F9: =IF(ISBLANK(C9),"",D9*E9) -> 2040
B10: =IF(ISBLANK(C10),"",COUNTA($C$8:C10)-1) -> 2 | C10: ياغوورت نوعية رفيعة | D10: =IF(ISBLANK(C10),"",VLOOKUP(C10,_list,2,0)) -> 29 | E10: 3 | F10: =IF(ISBLANK(C10),"",D10*E10) -> 87
B11: =IF(ISBLANK(C11),"",COUNTA($C$8:C11)-1) -> 3 | C11: تليتلي 800 غ | D11: =IF(ISBLANK(C11),"",VLOOKUP(C11,_list,2,0)) -> 100 | E11: 6 | F11: =IF(ISBLANK(C11),"",D11*E11) -> 600
B12: =IF(ISBLANK(C12),"",COUNTA($C$8:C12)-1) -> 4 | C12: عدس 800غ | D12: =IF(ISBLANK(C12),"",VLOOKUP(C12,_list,2,0)) -> 220 | E12: 2 | F12: =IF(ISBLANK(C12),"",D12*E12) -> 440
B13: =IF(ISBLANK(C13),"",COUNTA($C$8:C13)-1) ->  | D13: =IF(ISBLANK(C13),"",VLOOKUP(C13,_list,2,0)) ->  | F13: =IF(ISBLANK(C13),"",D13*E13) -> 
B14: =IF(ISBLANK(C14),"",COUNTA($C$8:C14)-1) ->  | D14: =IF(ISBLANK(C14),"",VLOOKUP(C14,_list,2,0)) ->  | F14: =IF(ISBLANK(C14),"",D14*E14) -> 
B15: =IF(ISBLANK(C15),"",COUNTA($C$8:C15)-1) ->  | D15: =IF(ISBLANK(C15),"",VLOOKUP(C15,_list,2,0)) ->  | F15: =IF(ISBLANK(C15),"",D15*E15) -> 
B16: =IF(ISBLANK(C16),"",COUNTA($C$8:C16)-1) ->  | D16: =IF(ISBLANK(C16),"",VLOOKUP(C16,_list,2,0)) ->  | F16: =IF(ISBLANK(C16),"",D16*E16) -> 
B17: =IF(ISBLANK(C17),"",COUNTA($C$8:C17)-1) ->  | D17: =IF(ISBLANK(C17),"",VLOOKUP(C17,_list,2,0)) ->  | F17: =IF(ISBLANK(C17),"",D17*E17) -> 
B18: =IF(ISBLANK(C18),"",COUNTA($C$8:C18)-1) ->  | D18: =IF(ISBLANK(C18),"",VLOOKUP(C18,_list,2,0)) ->  | F18: =IF(ISBLANK(C18),"",D18*E18) -> 
B19: =IF(ISBLANK(C19),"",COUNTA($C$8:C19)-1) ->  | D19: =IF(ISBLANK(C19),"",VLOOKUP(C19,_list,2,0)) ->  | F19: =IF(ISBLANK(C19),"",D19*E19) -> 
B20: =IF(ISBLANK(C20),"",COUNTA($C$8:C20)-1) ->  | D20: =IF(ISBLANK(C20),"",VLOOKUP(C20,_list,2,0)) ->  | F20: =IF(ISBLANK(C20),"",D20*E20) -> 
B21: =IF(ISBLANK(C21),"",COUNTA($C$8:C21)-1) ->  | D21: =IF(ISBLANK(C21),"",VLOOKUP(C21,_list,2,0)) ->  | F21: =IF(ISBLANK(C21),"",D21*E21) -> 
B22: =IF(ISBLANK(C22),"",COUNTA($C$8:C22)-1) ->  | D22: =IF(ISBLANK(C22),"",VLOOKUP(C22,_list,2,0)) ->  | F22: =IF(ISBLANK(C22),"",D22*E22) -> 
B23: =IF(ISBLANK(C23),"",COUNTA($C$8:C23)-1) ->  | D23: =IF(ISBLANK(C23),"",VLOOKUP(C23,_list,2,0)) ->  | F23: =IF(ISBLANK(C23),"",D23*E23) -> 
B24: =IF(ISBLANK(C24),"",COUNTA($C$8:C24)-1) ->  | D24: =IF(ISBLANK(C24),"",VLOOKUP(C24,_list,2,0)) ->  | F24: =IF(ISBLANK(C24),"",D24*E24) -> 
B25: =IF(ISBLANK(C25),"",COUNTA($C$8:C25)-1) ->  | D25: =IF(ISBLANK(C25),"",VLOOKUP(C25,_list,2,0)) ->  | F25: =IF(ISBLANK(C25),"",D25*E25) -> 
B26: =IF(ISBLANK(C26),"",COUNTA($C$8:C26)-1) ->  | D26: =IF(ISBLANK(C26),"",VLOOKUP(C26,_list,2,0)) ->  | F26: =IF(ISBLANK(C26),"",D26*E26) -> 
B27: =IF(ISBLANK(C27),"",COUNTA($C$8:C27)-1) ->  | D27: =IF(ISBLANK(C27),"",VLOOKUP(C27,_list,2,0)) ->  | F27: =IF(ISBLANK(C27),"",D27*E27) -> 
C28: الإجمالي | F28: =SUM(F9:F27) -> 3167
C29: =[1]!NoToTxt(F28,"دينار","فلس") -> فقط ثلاثة آلاف ومائة وسبعة وستون دينار

Sheet Sheet2 (hidden)

Sheet Sheet3 (hidden)
